bitfinex/quotes_BTCUSD_20250208
["timestamp","ask_amount","ask_price","bid_price","bid_amount"]
[1739005606547,0.34517165,96087.0,96086.0,0.00022428]
[1739005606766,0.35007983,96087.0,96086.0,0.00022428]
[1739005607586,0.35607983,96087.0,96086.0,0.00122428]
[1739005608351,0.37829915,96087.0,96086.0,0.00222428]
[1739005610988,0.36525082,96087.0,96086.0,0.00222428]
[1739005611998,0.36525082,96087.0,96086.0,0.32774709]
[1739005611999,0.47645441,96087.0,96086.0,0.32774709]
[1739005613156,0.37540577,96087.0,96086.0,0.32774709]
[1739005617840,0.36525082,96087.0,96086.0,0.00222428]
[1739005619437,0.35707983,96087.0,96086.0,0.00222428]
[1739005623201,0.36514001,96087.0,96086.0,0.00222428]
[1739005626770,0.46514401,96087.0,96086.0,0.00222428]
[1739005631189,0.46525081,96087.0,96086.0,0.00222428]
[1739005632931,0.36524681,96087.0,96086.0,0.00222428]
[1739005638489,0.28644681,96087.0,96086.0,0.00222428]
[1739005640621,0.27868681,96087.0,96086.0,0.00222428]
[1739005640857,0.28640681,96087.0,96086.0,0.00222428]
[1739005644605,0.27868681,96087.0,96086.0,0.00222428]
[1739005644823,0.28640681,96087.0,96086.0,0.00222428]
[1739005645371,0.28420043,96087.0,96086.0,0.00222428]
[1739005648217,0.27614025,96087.0,96086.0,0.00222428]
[1739005651721,0.12223863,96087.0,96077.0,0.3162649]
[1739005651912,0.156117,96082.0,96077.0,0.3162649]
[1739005652101,0.10250365,96081.0,96077.0,0.3162649]
[1739005652279,0.10728126,96081.0,96077.0,0.3162649]
[1739005652975,0.10728126,96081.0,96077.0,0.3172649]
[1739005653361,0.10728126,96081.0,96077.0,0.3162649]
[1739005654232,0.26340026,96081.0,96077.0,0.3162649]
[1739005654721,0.10928126,96081.0,96077.0,0.3162649]
[1739005654933,0.26540026,96081.0,96077.0,0.31648918]
[1739005655060,0.15612,96080.0,96077.0,0.31648918]
[1739005655470,0.10850365,96081.0,96077.0,0.31648918]
[1739005655673,0.00477761,96079.0,96077.0,0.31648918]
[1739005656028,0.00477761,96078.0,96077.0,0.31648918]
[1739005656379,0.15612,96080.0,96077.0,0.31648918]
[1739005656587,0.00477761,96078.0,96077.0,0.31648918]
[1739005656791,0.00807143,96078.0,96077.0,0.31648918]
[1739005656992,0.01283559,96078.0,96077.0,0.31648918]
[1739005657581,0.01583559,96078.0,96077.0,0.31648918]
[1739005658898,0.01783559,96078.0,96077.0,0.31648918]
[1739005661548,0.17395859,96078.0,96077.0,0.31648918]
[1739005661965,0.27646224,96078.0,96077.0,0.31648918]
[1739005665808,0.28694363,96078.0,96077.0,0.31648918]
[1739005671506,0.27646224,96078.0,96077.0,0.31648918]
[1739005677019,0.26839081,96078.0,96077.0,0.31648918]
[1739005677926,0.26849761,96078.0,96077.0,0.31648918]
[1739005683490,0.27656619,96078.0,96077.0,0.31648918]
[1739005686027,0.26849761,96078.0,96077.0,0.31648918]
[1739005687718,0.26834016,96078.0,96077.0,0.31648918]
[1739005689211,0.11221716,96078.0,96077.0,0.47261318]
[1739005689422,0.00971351,96078.0,96077.0,0.47261318]
[1739005689655,0.0051068,96078.0,96077.0,0.47261318]
[1739005689824,0.0051068,96078.0,96077.0,0.55081318]
[1739005690060,0.0051068,96078.0,96077.0,0.59971318]
[1739005690880,0.0051068,96078.0,96077.0,1.13521318]
[1739005691936,0.0021068,96078.0,96077.0,1.14571357]
[1739005692140,0.0001068,96078.0,96077.0,1.14571357]
[1739005692391,0.0001068,96078.0,96077.0,1.14671357]
[1739005692597,0.0021068,96078.0,96077.0,1.14671357]
[1739005692995,0.0001068,96078.0,96077.0,1.14671357]
[1739005693339,0.0001068,96078.0,96077.0,1.13721318]
[1739005696848,0.0001068,96078.0,96077.0,1.05901318]
[1739005697451,0.00817089,96078.0,96077.0,1.05901318]
[1739005697674,0.00817089,96078.0,96077.0,1.05801318]
[1739005697876,0.00917089,96078.0,96077.0,1.05801318]
[1739005698034,0.00917089,96078.0,96077.0,1.05701318]
[1739005698691,0.00817089,96078.0,96077.0,1.05701318]
[1739005699322,0.00817089,96078.0,96077.0,1.05801318]
[1739005699904,0.00917089,96078.0,96077.0,1.05801318]
[1739005700346,0.00817089,96078.0,96077.0,1.05801318]
[1739005705241,0.00817089,96078.0,96077.0,0.85298918]
[1739005705414,0.00817089,96078.0,96077.0,1.00811318]
[1739005705811,0.00817089,96078.0,96077.0,1.00911318]
[1739005707092,0.00817089,96078.0,96077.0,0.47361318]
[1739005707448,0.01017089,96078.0,96077.0,0.47261318]
[1739005707633,0.01217089,96078.0,96077.0,0.47261318]
[1739005708033,0.01417089,96078.0,96077.0,0.47261318]
[1739005708293,0.01217089,96078.0,96077.0,0.47261318]
[1739005708503,0.01317089,96078.0,96077.0,0.47261318]
[1739005712843,0.00917089,96078.0,96077.0,0.47261318]
[1739005713632,0.00817089,96078.0,96077.0,0.47261318]
[1739005713831,0.00917089,96078.0,96077.0,0.47261318]
[1739005714492,0.00817089,96078.0,96077.0,0.47261318]
[1739005714697,0.00817089,96078.0,96077.0,0.54801318]
[1739005715030,0.00817089,96078.0,96077.0,0.54901318]
[1739005716862,0.00817089,96078.0,96077.0,0.54801318]
[1739005717281,0.00817089,96078.0,96077.0,0.59581318]
[1739005717738,0.00817089,96078.0,96077.0,0.59481318]
[1739005718166,0.00817089,96078.0,96077.0,0.59581318]
[1739005718948,0.00817089,96078.0,96077.0,1.13131318]
[1739005719585,0.00817089,96078.0,96077.0,1.1415893]
[1739005720189,0.00817089,96078.0,96077.0,1.0661893]
[1739005720566,0.00817089,96078.0,96077.0,1.05591318]
[1739005733623,0.00817089,96078.0,96077.0,1.01011318]
[1739005734616,0.00817089,96078.0,96077.0,1.00911318]
[1739005734802,0.00817089,96078.0,96077.0,1.00811318]
[1739005735008,0.00917089,96078.0,96077.0,1.00811318]
[1739005735216,0.01017089,96078.0,96077.0,1.00811318]
[1739005735444,0.03597002,96078.0,96077.0,1.00811318]
[1739005736258,0.03597002,96078.0,96077.0,0.85198918]
[1739005736699,0.03597002,96078.0,96077.0,0.31648918]
[1739005736898,0.0229511,96078.0,96077.0,0.31648918]
[1739005740655,0.0219511,96078.0,96077.0,0.31648918]
[1739005740860,0.0209511,96078.0,96077.0,0.31648918]
[1739005741185,0.0229511,96078.0,96077.0,0.31648918]
[1739005741599,0.0219511,96078.0,96077.0,0.31648918]
[1739005742170,0.0209511,96078.0,96077.0,0.31648918]
[1739005742598,0.0219511,96078.0,96077.0,0.31648918]
[1739005742803,0.0209511,96078.0,96077.0,0.31648918]
[1739005743000,0.0219511,96078.0,96077.0,0.31648918]
[1739005743208,0.0229511,96078.0,96077.0,0.31648918]
[1739005743409,0.02675789,96078.0,96077.0,0.31648918]
[1739005743607,0.0209511,96078.0,96077.0,0.31648918]
[1739005743835,0.0229511,96078.0,96077.0,0.31648918]
[1739005744011,0.02775789,96078.0,96077.0,0.31648918]
[1739005744210,0.0229511,96078.0,96077.0,0.31648918]
[1739005746735,0.02773841,96078.0,96077.0,0.31648918]
[1739005746907,0.0229511,96078.0,96077.0,0.31648918]
[1739005748696,0.0219511,96078.0,96077.0,0.31648918]
[1739005749488,0.0229511,96078.0,96077.0,0.31648918]
[1739005752307,0.0219511,96078.0,96077.0,0.31648918]
[1739005753016,0.0229511,96078.0,96077.0,0.31648918]
[1739005758312,0.01017089,96078.0,96077.0,0.31648918]
[1739005761120,0.01495584,96078.0,96077.0,0.31648918]
[1739005761325,0.01017089,96078.0,96077.0,0.31648918]
[1739005761623,0.09047089,96078.0,96077.0,0.31648918]
[1739005761801,0.09525584,96078.0,96077.0,0.31648918]
[1739005762896,0.01495584,96078.0,96077.0,0.31648918]
[1739005765540,0.01395584,96078.0,96077.0,0.31648918]
[1739005765747,0.01295584,96078.0,96077.0,0.31648918]
[1739005765973,0.01495584,96078.0,96077.0,0.31648918]
[1739005770634,0.01017089,96078.0,96077.0,0.31648918]
[1739005778772,0.02215995,96078.0,96077.0,0.31648918]
[1739005781683,0.01017089,96078.0,96077.0,0.31648918]
[1739005783579,0.00877089,96078.0,96077.0,0.31648918]
[1739005789073,0.02076258,96078.0,96077.0,0.31648918]
[1739005791834,0.02076258,96078.0,96077.0,0.47261318]
[1739005792019,0.02076258,96078.0,96077.0,0.31648918]
[1739005795326,0.02086938,96078.0,96077.0,0.31648918]
[1739005796559,0.00887769,96078.0,96077.0,0.31648918]
[1739005799049,0.01365562,96078.0,96077.0,0.31648918]
[1739005800901,0.00887769,96078.0,96077.0,0.31648918]
[1739005801231,0.01365562,96078.0,96077.0,0.31648918]
[1739005801483,0.27228227,96078.0,96077.0,0.31648918]
[1739005801723,0.35258227,96078.0,96077.0,0.31648918]
[1739005802542,0.35158227,96078.0,96077.0,0.31648918]
[1739005802711,0.35058227,96078.0,96077.0,0.31648918]
[1739005802913,0.35658227,96078.0,96077.0,0.31748918]
[1739005803873,0.35958227,96078.0,96077.0,0.31848918]
[1739005804208,0.35658227,96078.0,96077.0,0.31748918]
[1739005804646,0.35958227,96078.0,96077.0,0.31848918]
[1739005813956,0.43658241,96078.0,96077.0,0.00222428]
[1739005814369,0.35958227,96078.0,96077.0,0.00222428]
[1739005817158,0.35281138,96078.0,96077.0,0.00222428]
[1739005826910,0.28047138,96078.0,96077.0,0.00222428]
[1739005827111,0.12434838,96078.0,96077.0,0.00222428]
[1739005827360,0.28047138,96078.0,96077.0,0.00222428]
[1739005827695,0.12434838,96078.0,96077.0,0.00222428]
[1739005828865,0.28047138,96078.0,96077.0,0.00222428]
[1739005829814,0.12434838,96078.0,96077.0,0.00222428]
[1739005830303,0.28047138,96078.0,96077.0,0.00222428]
[1739005830638,0.12434838,96078.0,96077.0,0.00222428]
[1739005832338,0.12434838,96078.0,96077.0,0.00222428]
[1739005834927,0.02184473,96078.0,96077.0,0.00222428]
[1739005835924,0.01388473,96078.0,96077.0,0.00222428]
[1739005836131,0.01388473,96078.0,96077.0,0.15834828]
[1739005836423,0.0091068,96078.0,96077.0,0.15834828]
[1739005840594,0.0091068,96078.0,96077.0,0.47461318]
[1739005847548,0.0091068,96078.0,96077.0,0.31848918]
[1739005847743,0.01389064,96078.0,96077.0,0.31848918]
[1739005848635,0.0091068,96078.0,96077.0,0.31848918]
[1739005848831,0.0139235,96078.0,96077.0,0.47461318]
[1739005849008,0.0139235,96078.0,96077.0,0.31848918]
[1739005849205,0.0091068,96078.0,96077.0,0.31848918]
[1739005849610,0.0139235,96078.0,96077.0,0.31848918]
[1739005850010,0.0091068,96078.0,96077.0,0.31848918]
[1739005850354,0.0139235,96078.0,96077.0,0.31848918]
[1739005851911,0.0091068,96078.0,96077.0,0.47461318]
[1739005854846,0.0091068,96078.0,96077.0,0.48522686]
[1739005860812,0.0031068,96078.0,96077.0,0.48322686]
[1739005860998,0.0041068,96078.0,96077.0,0.48322686]
[1739005861200,0.0071068,96078.0,96077.0,0.48322686]
[1739005863975,0.0071068,96078.0,96077.0,0.47261318]
[1739005881249,0.0071068,96078.0,96077.0,0.48276222]
[1739005882282,0.0071068,96078.0,96077.0,1.01826222]
[1739005882501,0.0071068,96078.0,96077.0,1.14346222]
[1739005883446,0.0001068,96078.0,96077.0,1.14346222]
[1739005883843,0.0031068,96078.0,96077.0,1.14346222]
[1739005884405,0.0041068,96078.0,96077.0,1.31480944]
[1739005884710,0.0041068,96078.0,96077.0,1.31580944]
[1739005885433,0.0041068,96078.0,96077.0,1.41831309]
[1739005885896,0.0001068,96078.0,96077.0,1.41831309]
[1739005887004,0.0001068,96078.0,96077.0,1.41931309]
[1739005889266,0.0001068,96078.0,96077.0,1.44131309]
[1739005889443,0.0001068,96078.0,96077.0,1.44431309]
[1739005889644,0.0001068,96078.0,96077.0,1.44331309]
[1739005889843,0.0001068,96078.0,96077.0,1.44731309]
[1739005890214,8e-07,96078.0,96077.0,1.44731309]
[1739005899349,8e-07,96078.0,96077.0,1.42431309]
[1739005918542,8e-07,96078.0,96077.0,1.4555645]
[1739005920479,8e-07,96078.0,96077.0,1.4785645]
[1739005925570,0.28246432,96096.0,96095.0,0.156095]
[1739005925935,0.2874577,96096.0,96095.0,0.156095]
[1739005926954,0.2884577,96096.0,96095.0,0.156095]
[1739005927248,0.2904577,96096.0,96095.0,0.156095]
[1739005927984,0.2884577,96096.0,96095.0,0.156095]
[1739005928467,0.2874577,96096.0,96095.0,0.156095]
[1739005928668,0.2874577,96096.0,96095.0,0.157095]
[1739005929710,0.2874577,96096.0,96095.0,1.0088599]
[1739005930872,0.28246432,96096.0,96095.0,1.0088599]
[1739005934120,0.28246432,96096.0,96095.0,1.01907012]
[1739005935713,0.28257112,96096.0,96095.0,1.01907012]
[1739005947789,0.28257112,96096.0,96095.0,1.0192944]
[1739005962458,0.28257112,96096.0,96095.0,0.4837944]
[1739005968487,0.28257112,96096.0,96095.0,1.0192944]
[1739005986356,0.28257112,96096.0,96095.0,0.4837944]
[1739005991262,0.36057112,96096.0,96095.0,0.47358418]
[1739005991553,0.36555071,96096.0,96095.0,0.47358418]
[1739005992009,0.36555071,96096.0,96095.0,0.31748918]
[1739005992233,0.36555071,96096.0,96095.0,0.47358418]
[1739005993888,0.36655071,96096.0,96095.0,0.47358418]
[1739005994360,0.36655071,96096.0,96095.0,0.47258418]
[1739005994528,0.36855071,96096.0,96095.0,0.62258418]
[1739005994718,0.36755071,96096.0,96095.0,0.62258418]
[1739005995123,0.36855071,96096.0,96095.0,0.62258418]
[1739005995325,0.36955071,96096.0,96095.0,0.62258418]
[1739005995523,0.36855071,96096.0,96095.0,0.62258418]
[1739005996147,0.36755071,96096.0,96095.0,0.62258418]
[1739005996929,0.36855071,96096.0,96095.0,0.62258418]
[1739005997412,0.37055071,96096.0,96095.0,0.62258418]
[1739005998017,0.36855071,96096.0,96095.0,0.62258418]
[1739005998220,0.34426691,96096.0,96095.0,0.62258418]
[1739006000224,0.34126691,96096.0,96095.0,0.62258418]
[1739006000427,0.34226691,96096.0,96095.0,0.62258418]
[1739006000625,0.34126691,96096.0,96095.0,0.62258418]
[1739006000835,0.34226691,96096.0,96095.0,0.62258418]
[1739006001387,0.34026691,96096.0,96095.0,0.62258418]
[1739006008927,0.34226691,96096.0,96095.0,0.62258418]
[1739006010296,0.34026691,96096.0,96095.0,0.62258418]
[1739006010586,0.34126691,96096.0,96095.0,0.62258418]
[1739006010731,0.34226691,96096.0,96095.0,0.62258418]
[1739006011145,0.34126691,96096.0,96095.0,0.62258418]
[1739006011397,0.34026691,96096.0,96095.0,0.62258418]
[1739006011723,0.34126691,96096.0,96095.0,0.62258418]
[1739006015927,0.34126691,96096.0,96095.0,0.46648918]
[1739006016128,0.34126691,96096.0,96095.0,0.62258418]
[1739006016333,0.34126691,96096.0,96095.0,0.46648918]
[1739006018873,0.64566356,96096.0,96095.0,0.00022428]
[1739006019109,0.64564766,96096.0,96095.0,0.00022428]
[1739006020241,0.64964766,96096.0,96095.0,0.00022428]
[1739006020446,0.65164766,96096.0,96095.0,0.00022428]
[1739006020731,0.64964766,96096.0,96095.0,0.00022428]
[1739006021172,0.66223407,96096.0,96095.0,0.00022428]
[1739006021770,0.75494148,96096.0,96095.0,0.00022428]
[1739006021947,0.66223407,96096.0,96095.0,0.00022428]
[1739006026829,0.83523407,96096.0,96095.0,0.00022428]
[1739006027954,0.83323407,96096.0,96095.0,0.00022428]
[1739006028493,0.83523407,96096.0,96095.0,0.00122428]
[1739006028674,0.93773772,96096.0,96095.0,0.00122428]
[1739006028868,0.93573772,96096.0,96095.0,0.00022428]
[1739006029493,0.93273772,96096.0,96095.0,0.00122428]
[1739006029775,0.94173772,96096.0,96095.0,0.00222428]
[1739006030200,0.95073772,96096.0,96095.0,0.00322428]
[1739006041044,1.06033772,96096.0,96095.0,0.00322428]
[1739006045244,0.95783407,96096.0,96095.0,0.00322428]
[1739006048700,0.95783407,96096.0,96095.0,0.00222428]
[1739006048906,0.95583407,96096.0,96095.0,0.00222428]
[1739006049271,0.94583407,96096.0,96095.0,0.00122428]
[1739006050954,0.94087038,96096.0,96095.0,0.00122428]
[1739006051183,0.94559207,96096.0,96095.0,0.00122428]
[1739006051683,1.04809572,96096.0,96095.0,0.00122428]
[1739006053226,1.04509572,96096.0,96095.0,0.00122428]
[1739006053432,1.07746427,96096.0,96095.0,0.00122428]
[1739006056355,0.56856062,96096.0,96095.0,0.00122428]
[1739006056555,0.54391207,96096.0,96095.0,0.00122428]
[1739006057717,0.53591207,96096.0,96095.0,0.00022428]
[1739006058115,0.54391207,96096.0,96095.0,0.00122428]
[1739006059089,0.54391207,96096.0,96095.0,0.00222428]
[1739006059090,0.55291207,96096.0,96095.0,0.00222428]
[1739006059738,0.54391207,96096.0,96095.0,0.00122428]
[1739006059908,0.55291207,96096.0,96095.0,0.00222428]
[1739006060307,0.55291207,96096.0,96095.0,0.00122428]
[1739006060542,0.54491207,96096.0,96095.0,0.00122428]
[1739006060694,0.55091207,96096.0,96095.0,0.00222428]
[1739006062996,0.53260566,96096.0,96095.0,0.00222428]
[1739006063202,0.54032566,96096.0,96095.0,0.00222428]
[1739006063833,0.54032566,96096.0,96095.0,0.07842428]
[1739006064031,0.53432566,96096.0,96095.0,0.07742428]
[1739006064461,0.54132566,96096.0,96095.0,0.07842428]
[1739006065056,0.53232566,96096.0,96095.0,0.07742428]
[1739006065472,0.54032566,96096.0,96095.0,0.07842428]
[1739006078090,0.54032566,96096.0,96095.0,0.00222428]
[1739006079485,0.38423266,96096.0,96095.0,0.00222428]
[1739006079661,0.54032566,96096.0,96095.0,0.00222428]
[1739006095044,0.62132566,96096.0,96095.0,0.00222428]
[1739006095205,0.71803121,96096.0,96095.0,0.00222428]
[1739006095610,0.62132566,96096.0,96095.0,0.00222428]
[1739006099880,0.54032566,96096.0,96095.0,0.00222428]
[1739006102361,0.54876981,96096.0,96095.0,0.00222428]
[1739006106828,0.54032566,96096.0,96095.0,0.00222428]
[1739006110264,0.54876839,96096.0,96095.0,0.00222428]
[1739006111787,0.54032566,96096.0,96095.0,0.00222428]
[1739006121442,0.54876902,96096.0,96095.0,0.00222428]
[1739006122167,0.39267602,96096.0,96071.0,0.08330426]
[1739006122368,0.09564869,96090.0,96083.0,0.156113]
[1739006122570,0.10250365,96089.0,96071.0,0.08330426]
[1739006122829,0.11094701,96089.0,96084.0,0.156111]
[1739006123014,0.00480161,96088.0,96084.0,0.156111]
[1739006123209,0.10250365,96087.0,96084.0,0.156111]
[1739006123413,0.10250365,96087.0,96079.0,0.15612]
[1739006123573,0.10250365,96087.0,96083.0,0.001]
[1739006123915,0.00480161,96086.0,96083.0,0.001]
[1739006124123,0.10250365,96085.0,96083.0,0.001]
[1739006124523,0.00844336,96089.0,96083.0,0.001]
[1739006124859,0.00844336,96089.0,96063.0,0.00104072]
[1739006124992,0.005,96087.0,96084.0,0.156113]
[1739006125196,0.005,96087.0,96084.0,0.001]
[1739006125392,0.005,96087.0,96083.0,0.156114]
[1739006125614,0.005,96087.0,96082.0,0.0495]
[1739006125841,0.005,96087.0,96084.0,0.156112]
[1739006126138,0.01344336,96089.0,96084.0,0.156112]
[1739006126337,0.004,96087.0,96084.0,0.156112]
[1739006126779,0.004,96087.0,96082.0,0.0495]
[1739006126958,0.004,96087.0,96085.0,0.156111]
[1739006127316,0.00844336,96086.0,96085.0,0.156111]
[1739006129107,0.01244336,96086.0,96085.0,0.156111]
[1739006129597,0.01244336,96086.0,96082.0,0.257653]
[1739006129784,0.10250365,96085.0,96073.0,0.208175]
[1739006129993,0.09564869,96083.0,96077.0,0.156124]
[1739006130443,0.10250365,96085.0,96077.0,0.156124]
[1739006130643,0.00480161,96082.0,96077.0,0.156124]
[1739006130817,0.01324497,96082.0,96077.0,0.156124]
[1739006131028,0.00844336,96082.0,96077.0,0.156124]
[1739006131225,0.00480161,96081.0,96073.0,0.208175]
[1739006131405,0.00480161,96081.0,96078.0,0.156123]
[1739006131584,0.00480161,96081.0,96070.0,0.208179]
[1739006131780,0.00844336,96082.0,96077.0,0.156123]
[1739006132302,0.00680161,96081.0,96077.0,0.156123]
[1739006132698,0.00680161,96081.0,96078.0,0.156122]
[1739006132912,0.01524497,96081.0,96078.0,0.156122]
[1739006133117,0.01324497,96081.0,96078.0,0.156122]
[1739006133524,0.01724497,96081.0,96078.0,0.156122]
[1739006133919,0.01524497,96081.0,96078.0,0.156122]
[1739006134441,0.02194972,96080.0,96078.0,0.156122]
[1739006134849,0.00480161,96079.0,96078.0,0.156122]
[1739006135736,0.00480161,96079.0,96076.0,0.156124]
[1739006135924,0.02675133,96079.0,96076.0,0.156124]
[1739006136124,0.02194972,96079.0,96077.0,0.156124]
[1739006136329,0.02294972,96079.0,96077.0,0.156124]
[1739006136660,0.02394972,96079.0,96078.0,0.156123]
[1739006137126,0.02294972,96079.0,96078.0,0.156123]
[1739006137293,0.00944336,96079.0,96078.0,0.156123]
[1739006137498,0.01044336,96079.0,96075.0,0.208169]
[1739006137696,0.01044336,96079.0,96077.0,0.156123]
[1739006138000,0.01144336,96079.0,96077.0,0.156123]
[1739006138180,0.00944336,96079.0,96077.0,0.156123]
[1739006138380,0.01044336,96079.0,96077.0,0.156123]
[1739006138798,0.00944336,96079.0,96077.0,0.156123]
[1739006139012,0.01044336,96079.0,96077.0,0.156123]
[1739006139229,0.01144336,96079.0,96077.0,0.156123]
[1739006139434,0.00844336,96078.0,96077.0,0.156123]
[1739006140038,0.00168281,96078.0,96077.0,0.156123]
[1739006140852,0.00268281,96078.0,96077.0,0.156123]
[1739006141155,0.00268281,96078.0,96074.0,0.156128]
[1739006141728,0.00368281,96078.0,96065.0,0.15]
[1739006142058,0.00368281,96078.0,96072.0,0.156132]
[1739006142258,0.00480161,96077.0,96073.0,0.156131]
[1739006142882,0.01830465,96077.0,96073.0,0.156131]
[1739006143116,0.01830465,96077.0,96074.0,0.156128]
[1739006143516,0.01930465,96077.0,96074.0,0.156128]
[1739006143699,0.01930465,96077.0,96071.0,0.208177]
[1739006144319,0.01930465,96077.0,96074.0,0.156128]
[1739006144653,0.01830465,96077.0,96075.0,0.156127]
[1739006144799,0.00480161,96077.0,96075.0,0.156127]
[1739006145005,0.001,96077.0,96075.0,0.156127]
[1739006145592,0.0001068,96081.0,96075.0,0.156127]
[1739006145787,0.00478554,96080.0,96075.0,0.156127]
[1739006146017,0.001,96077.0,96074.0,0.156129]
[1739006146415,0.001,96077.0,96073.0,0.15613]
[1739006146798,0.001,96077.0,96074.0,0.156128]
[1739006146997,0.001,96077.0,96064.0,0.15]
[1739006147202,0.001,96077.0,96066.0,0.15]
[1739006147443,0.001,96077.0,96075.0,0.156127]
[1739006147653,0.00478554,96076.0,96075.0,0.156127]
[1739006147982,0.001,96077.0,96075.0,0.156127]
[1739006148268,0.10261045,96081.0,96075.0,0.156127]
[1739006148642,0.002,96080.0,96076.0,0.156126]
[1739006148987,0.00678669,96080.0,96076.0,0.156126]
[1739006149144,0.001,96077.0,96076.0,0.156126]
[1739006149353,0.10261045,96081.0,96076.0,0.156126]
[1739006149663,0.10261045,96081.0,96073.0,0.208173]
[1739006149902,0.10461045,96081.0,96073.0,0.208173]
[1739006150094,0.00478669,96080.0,96073.0,0.208173]
[1739006150618,0.00478669,96080.0,96074.0,0.156129]
[1739006151028,0.00478669,96080.0,96073.0,0.208173]
[1739006151166,0.00478669,96080.0,96071.0,0.156134]
[1739006151366,0.00478669,96080.0,96072.0,0.156131]
[1739006151562,0.001,96077.0,96072.0,0.156131]
[1739006151840,0.00478669,96080.0,96072.0,0.156131]
[1739006152040,0.00067923,96080.0,96066.0,0.208188]
[1739006152196,0.00478669,96076.0,96068.0,0.208185]
[1739006152401,0.01349818,96079.0,96074.0,0.156128]
[1739006152803,0.002,96077.0,96074.0,0.156128]
[1739006153038,0.002,96077.0,96063.0,0.255495]
[1739006153280,0.00478669,96076.0,96073.0,0.15613]
[1739006153576,0.00578669,96076.0,96073.0,0.15613]
[1739006153867,0.001,96076.0,96073.0,0.15613]
[1739006154072,0.00933998,96076.0,96074.0,0.156129]
[1739006154411,0.00933998,96076.0,96073.0,0.156131]
[1739006154617,0.00933998,96076.0,96074.0,0.156129]
[1739006155399,0.00833998,96076.0,96074.0,0.156129]
[1739006155721,0.00833998,96075.0,96074.0,0.156129]
[1739006156368,0.00833998,96075.0,96072.0,0.156131]
[1739006156943,0.00933998,96075.0,96072.0,0.156131]
[1739006157537,0.00833998,96075.0,96072.0,0.156131]
[1739006157748,0.00833998,96074.0,96071.0,0.156134]
[1739006158796,0.00833998,96074.0,96071.0,0.15635828]
[1739006159778,0.00833998,96073.0,96071.0,0.15635828]
[1739006159969,0.00833998,96073.0,96071.0,0.00022428]
[1739006160381,0.00833998,96073.0,96071.0,0.15635828]
[1739006160975,0.00833998,96073.0,96071.0,0.00022428]
[1739006161180,0.00833998,96073.0,96071.0,0.15635828]
[1739006161725,0.00833998,96072.0,96071.0,0.15635828]
[1739006162848,0.00933998,96072.0,96071.0,0.15635828]
[1739006163059,0.01033998,96072.0,96071.0,0.15635828]
[1739006163461,0.00933998,96072.0,96071.0,0.15635828]
[1739006163673,0.01033998,96072.0,96071.0,0.15635828]
[1739006164439,0.00933998,96072.0,96071.0,0.15635828]
[1739006164718,0.01033998,96072.0,96071.0,0.15635828]
[1739006165230,0.00933998,96072.0,96071.0,0.15635828]
[1739006165562,0.00833998,96072.0,96071.0,0.15635828]
[1739006165858,0.00933998,96072.0,96071.0,0.15635828]
[1739006166069,0.00933998,96072.0,96071.0,0.00022428]
[1739006166423,0.00933998,96072.0,96071.0,0.15635828]
[1739006183175,0.00933998,96072.0,96071.0,0.00022428]
[1739006184863,0.00933998,96072.0,96071.0,0.15635828]
[1739006186095,0.001,96072.0,96071.0,0.15635828]
[1739006186631,0.00934373,96072.0,96071.0,0.15635828]
[1739006188763,0.00834373,96072.0,96071.0,0.15635828]
[1739006188974,0.00934373,96072.0,96071.0,0.15635828]
[1739006190321,0.00834373,96072.0,96071.0,0.15635828]
[1739006190534,0.0001068,96078.0,96071.0,0.00022428]
[1739006190734,0.0001068,96078.0,96073.0,0.15613]
[1739006191150,0.0001068,96078.0,96077.0,0.156124]
[1739006191806,0.0031068,96078.0,96077.0,0.156124]
[1739006192228,0.0051068,96078.0,96077.0,0.156124]
[1739006192842,0.0021068,96078.0,96077.0,0.156124]
[1739006193607,0.0001068,96078.0,96077.0,0.156124]
[1739006193922,0.0001068,96078.0,96077.0,0.157124]
[1739006194495,0.0001068,96078.0,96077.0,0.158124]
[1739006195158,0.00490323,96078.0,96077.0,0.158124]
[1739006195983,0.0001068,96078.0,96077.0,0.157124]
[1739006196180,0.0001068,96078.0,96077.0,0.15834828]
[1739006196697,0.0001068,96078.0,96077.0,0.15734828]
[1739006197106,0.0001068,96078.0,96077.0,0.15834828]
[1739006197579,0.0001068,96078.0,96077.0,0.00222428]
[1739006197782,0.0001068,96078.0,96077.0,0.15834828]
[1739006198324,0.0001068,96078.0,96077.0,0.00222428]
[1739006199140,0.0001068,96078.0,96077.0,0.00122428]
[1739006199792,0.0001068,96078.0,96077.0,0.00022428]
[1739006199992,0.00490723,96078.0,96077.0,0.00022428]
[1739006200195,0.00658646,96078.0,96077.0,0.00022428]
[1739006200405,0.00758646,96078.0,96077.0,0.00022428]
[1739006200986,0.00590723,96078.0,96077.0,0.00022428]
[1739006201344,0.00690723,96078.0,96077.0,0.00022428]
[1739006202133,0.00790723,96078.0,96077.0,0.00022428]
[1739006208897,0.00858646,96078.0,96077.0,0.00022428]
[1739006209721,0.00790723,96078.0,96077.0,0.00022428]
[1739006210831,0.0031068,96078.0,96077.0,0.00022428]
[1739006212751,0.00790667,96078.0,96077.0,0.00022428]
[1739006212988,0.0031068,96078.0,96077.0,0.00022428]
[1739006218503,0.0031068,96078.0,96077.0,0.15634828]
[1739006219308,0.0021068,96078.0,96077.0,0.15634828]
[1739006219518,0.0011068,96078.0,96077.0,0.15634828]
[1739006219937,0.0021068,96078.0,96077.0,0.15634828]
[1739006220140,0.0011068,96078.0,96077.0,0.15634828]
[1739006220639,0.0021068,96078.0,96077.0,0.15634828]
[1739006222237,0.0011068,96078.0,96077.0,0.15634828]
[1739006222439,0.0001068,96078.0,96077.0,0.15634828]
[1739006223292,0.0001068,96078.0,96077.0,0.15734828]
[1739006223493,0.0001068,96078.0,96077.0,0.00122428]
[1739006224777,0.0001068,96078.0,96077.0,0.15734828]
[1739006225337,0.0001068,96078.0,96077.0,0.15634828]
[1739006225537,0.0001068,96078.0,96077.0,0.15734828]
[1739006226581,0.0001068,96078.0,96077.0,0.00122428]
[1739006227214,0.0001068,96078.0,96077.0,0.15734828]
[1739006227449,0.0001068,96078.0,96077.0,0.15838899]
[1739006227584,0.0001068,96078.0,96077.0,0.15734828]
[1739006229753,0.0001068,96078.0,96077.0,0.15634828]
[1739006230190,0.0001068,96078.0,96077.0,0.15734828]
[1739006230323,0.0001068,96078.0,96077.0,0.15834828]
[1739006235003,0.0001068,96078.0,96077.0,0.00222428]
[1739006236096,0.0001068,96078.0,96077.0,0.15834828]
[1739006240503,0.0001068,96078.0,96077.0,0.30938902]
[1739006240782,0.0001068,96078.0,96077.0,0.30834828]
[1739006241445,0.0001068,96078.0,96077.0,0.30734828]
[1739006241847,0.0001068,96078.0,96077.0,0.31034828]
[1739006242005,0.0001068,96078.0,96077.0,0.31234828]
[1739006242808,0.0001068,96078.0,96077.0,0.32462609]
[1739006244720,0.0001068,96078.0,96077.0,0.65152609]